[Event "Titled Tuesday Blitz February 15 Late 2022"]
[White "Csonka, Balazs"]
[Black "Kushko, Dmitriy"]
[WhiteFideId "742910"]
[BlackFideId "14162261"]
[WhiteElo "2404"]
[BlackElo "2225"]
[Result "1/2-1/2"]
[Round "05"]
[TimeControl "180+1"]
[Date "2022.02.16"]
[WhiteClock "0:00:08"]
[BlackClock "0:00:16"]

1. e4 {[%clk 0:03:00]}  d6 {[%clk 0:02:59]} 2. d4 {[%clk 0:03:00]}  Nf6 {[%clk 0:02:59]} 3. f3 {[%clk 0:02:58]}  e5 {[%clk 0:02:59]} 4. dxe5 {[%clk 0:02:55]}  dxe5 {[%clk 0:02:58]} 5. Qxd8+ {[%clk 0:02:55]}  Kxd8 {[%clk 0:02:59]} 6. Bc4 {[%clk 0:02:55]}  Ke8 {[%clk 0:03:00]} 7. Be3 {[%clk 0:02:52]}  Nbd7 {[%clk 0:03:00]} 8. Nd2 {[%clk 0:02:51]}  Bc5 {[%clk 0:02:59]} 9. Nf1 {[%clk 0:02:51]}  c6 {[%clk 0:02:57]} 10. a4 {[%clk 0:02:50]}  a5 {[%clk 0:02:57]} 11. Ne2 {[%clk 0:02:49]}  Ke7 {[%clk 0:02:55]} 12. Nc1 {[%clk 0:02:48]}  Bxe3 {[%clk 0:02:54]} 13. Nxe3 {[%clk 0:02:48]}  Nc5 {[%clk 0:02:55]} 14. Ke2 {[%clk 0:02:41]}  Bd7 {[%clk 0:02:53]} 15. Rd1 {[%clk 0:02:35]}  Rhd8 {[%clk 0:02:51]} 16. c3 {[%clk 0:02:30]}  g6 {[%clk 0:02:50]} 17. Nd3 {[%clk 0:02:14]}  Nxd3 {[%clk 0:02:49]} 18. Rxd3 {[%clk 0:02:13]}  Be8 {[%clk 0:02:49]} 19. Rad1 {[%clk 0:02:06]}  Rxd3 {[%clk 0:02:48]} 20. Bxd3 {[%clk 0:02:07]}  Nd7 {[%clk 0:02:36]} 21. Bc2 {[%clk 0:02:04]}  Nb6 {[%clk 0:02:32]} 22. Bb3 {[%clk 0:01:56]}  f6 {[%clk 0:02:32]} 23. Nc4 {[%clk 0:01:51]}  Nxc4 {[%clk 0:02:31]} 24. Bxc4 {[%clk 0:01:52]}  Rd8 {[%clk 0:02:30]} 25. Rxd8 {[%clk 0:01:52]}  Kxd8 {[%clk 0:02:31]} 26. Bg8 {[%clk 0:01:46]}  h6 {[%clk 0:02:27]} 27. Kd3 {[%clk 0:01:39]}  Kc7 {[%clk 0:02:26]} 28. b4 {[%clk 0:01:34]}  b6 {[%clk 0:02:25]} 29. g3 {[%clk 0:01:21]}  Kd6 {[%clk 0:02:24]} 30. Bb3 {[%clk 0:01:20]}  g5 {[%clk 0:02:13]} 31. g4 {[%clk 0:01:19]}  h5 {[%clk 0:02:12]} 32. h3 {[%clk 0:01:19]}  h4 {[%clk 0:02:12]} 33. Ke3 {[%clk 0:01:12]}  Bd7 {[%clk 0:02:06]} 34. Kd3 {[%clk 0:01:12]}  Bc8 {[%clk 0:02:06]} 35. Bc4 {[%clk 0:01:09]}  Bb7 {[%clk 0:01:51]} 36. Ke3 {[%clk 0:01:06]}  Bc8 {[%clk 0:01:20]} 37. Kd3 {[%clk 0:01:05]}  Bd7 {[%clk 0:01:20]} 38. Bb3 {[%clk 0:01:04]}  Kc7 {[%clk 0:01:18]} 39. bxa5 {[%clk 0:00:53]}  bxa5 {[%clk 0:01:17]} 40. c4 {[%clk 0:00:53]}  Kb6 {[%clk 0:01:16]} 41. Kc3 {[%clk 0:00:54]}  Kc5 {[%clk 0:01:16]} 42. Bc2 {[%clk 0:00:53]}  Be6 {[%clk 0:00:48]} 43. Bd3 {[%clk 0:00:53]}  Bf7 {[%clk 0:00:45]} 44. Be2 {[%clk 0:00:53]}  Kd6 {[%clk 0:00:45]} 45. Bd3 {[%clk 0:00:52]}  Be8 {[%clk 0:00:33]} 46. Be2 {[%clk 0:00:52]}  c5 {[%clk 0:00:27]} 47. Bd1 {[%clk 0:00:51]}  Bc6 {[%clk 0:00:24]} 48. Bc2 {[%clk 0:00:51]}  f5 {[%clk 0:00:21]} 49. gxf5 {[%clk 0:00:42]}  Be8 {[%clk 0:00:19]} 50. Kd2 {[%clk 0:00:40]}  Bf7 {[%clk 0:00:16]} 51. Bd3 {[%clk 0:00:38]}  Ke7 {[%clk 0:00:16]} 52. Ke3 {[%clk 0:00:36]}  Kf6 {[%clk 0:00:16]} 53. Be2 {[%clk 0:00:36]}  Be8 {[%clk 0:00:15]} 54. Bd1 {[%clk 0:00:36]}  Bd7 {[%clk 0:00:13]} 55. Bb3 {[%clk 0:00:37]}  Bc6 {[%clk 0:00:10]} 56. Bc2 {[%clk 0:00:37]}  Bb7 {[%clk 0:00:10]} 57. Kd2 {[%clk 0:00:35]}  Ba6 {[%clk 0:00:08]} 58. Bb3 {[%clk 0:00:35]}  Kg7 {[%clk 0:00:07]} 59. Ke3 {[%clk 0:00:36]}  Kf6 {[%clk 0:00:08]} 60. Kd2 {[%clk 0:00:35]}  Bb7 {[%clk 0:00:08]} 61. Ke3 {[%clk 0:00:34]}  Bc6 {[%clk 0:00:08]} 62. Bd1 {[%clk 0:00:33]}  Be8 {[%clk 0:00:08]} 63. Kd3 {[%clk 0:00:33]}  Bh5 {[%clk 0:00:08]} 64. Kd2 {[%clk 0:00:27]}  Bf7 {[%clk 0:00:06]} 65. Be2 {[%clk 0:00:26]}  g4 {[%clk 0:00:04]} 66. hxg4 {[%clk 0:00:06]}  Kg5 {[%clk 0:00:05]} 67. Ke3 {[%clk 0:00:02]}  h3 {[%clk 0:00:05]} 68. Kf2 {[%clk 0:00:02]}  Kf4 {[%clk 0:00:05]} 69. Bd1 {[%clk 0:00:02]}  Bxc4 {[%clk 0:00:03]} 70. g5 {[%clk 0:00:01]}  Kxg5 {[%clk 0:00:03]} 71. Kg3 {[%clk 0:00:02]}  Bd3 {[%clk 0:00:03]} 72. Kxh3 {[%clk 0:00:02]}  c4 {[%clk 0:00:03]} 73. Kg3 {[%clk 0:00:02]}  c3 {[%clk 0:00:04]} 74. f6 {[%clk 0:00:01]}  Kxf6 {[%clk 0:00:03]} 75. f4 {[%clk 0:00:01]}  exf4+ {[%clk 0:00:03]} 76. Kxf4 {[%clk 0:00:02]}  c2 {[%clk 0:00:04]} 77. Bxc2 {[%clk 0:00:03]}  Bxc2 {[%clk 0:00:04]} 78. Ke3 {[%clk 0:00:03]}  Ke6 {[%clk 0:00:05]} 79. Kd4 {[%clk 0:00:03]}  Kd6 {[%clk 0:00:05]} 80. Kc4 {[%clk 0:00:03]}  Kc6 {[%clk 0:00:04]} 81. e5 {[%clk 0:00:04]}  Bf5 {[%clk 0:00:04]} 82. Kd4 {[%clk 0:00:03]}  Be6 {[%clk 0:00:05]} 83. Kd3 {[%clk 0:00:01]}  Kc5 {[%clk 0:00:06]} 84. Kc3 {[%clk 0:00:01]}  Kd5 {[%clk 0:00:06]} 85. Kb2 {[%clk 0:00:02]}  Ke4 {[%clk 0:00:07]} 86. Ka1 {[%clk 0:00:02]}  Ke3 {[%clk 0:00:08]} 87. Kb2 {[%clk 0:00:03]}  Kd2 {[%clk 0:00:08]} 88. Ka1 {[%clk 0:00:04]}  Kc3 {[%clk 0:00:09]} 89. Kb1 {[%clk 0:00:04]}  Kb3 {[%clk 0:00:09]} 90. Ka1 {[%clk 0:00:04]}  Bf5 {[%clk 0:00:10]} 91. e6 {[%clk 0:00:04]}  Bxe6 {[%clk 0:00:11]} 92. Kb1 {[%clk 0:00:04]}  Ka3 {[%clk 0:00:11]} 93. Ka1 {[%clk 0:00:05]}  Bd5 {[%clk 0:00:11]} 94. Kb1 {[%clk 0:00:05]}  Be4+ {[%clk 0:00:12]} 95. Ka1 {[%clk 0:00:06]}  Kb4 {[%clk 0:00:13]} 96. Kb2 {[%clk 0:00:06]}  Kxa4 {[%clk 0:00:13]} 97. Ka2 {[%clk 0:00:06]}  Kb4 {[%clk 0:00:14]} 98. Kb2 {[%clk 0:00:06]}  a4 {[%clk 0:00:14]} 99. Ka1 {[%clk 0:00:07]}  a3 {[%clk 0:00:15]} 100. Ka2 {[%clk 0:00:08]}  Ka4 {[%clk 0:00:15]} 101. Ka1 {[%clk 0:00:08]}  Kb3 {[%clk 0:00:16]} 1/2-1/2


[Site "https://www.chess.com"]

[Event "Titled Tuesday Blitz February 15 Late 2022"]
[White "Curtis, John"]
[Black "Sliwicki, Damian"]
[WhiteFideId "3200256"]
[BlackFideId "1127128"]
[WhiteElo "2203"]
[BlackElo "2084"]
[Result "0-1"]
[Round "05"]
[TimeControl "180+1"]
[Date "2022.02.16"]
[WhiteClock "0:00:01"]
[BlackClock "0:00:08"]

1. e4 {[%clk 0:03:00]}  c5 {[%clk 0:02:55]} 2. Nf3 {[%clk 0:03:00]}  g6 {[%clk 0:02:50]} 3. d4 {[%clk 0:02:58]}  cxd4 {[%clk 0:02:51]} 4. Nxd4 {[%clk 0:02:58]}  Nc6 {[%clk 0:02:51]} 5. Be3 {[%clk 0:02:57]}  Nf6 {[%clk 0:02:45]} 6. Nc3 {[%clk 0:02:53]}  Bg7 {[%clk 0:02:44]} 7. Be2 {[%clk 0:02:45]}  O-O {[%clk 0:02:41]} 8. Nb3 {[%clk 0:02:44]}  d6 {[%clk 0:02:35]} 9. Qd2 {[%clk 0:02:43]}  Be6 {[%clk 0:02:33]} 10. Nd4 {[%clk 0:02:38]}  Nxd4 {[%clk 0:02:27]} 11. Bxd4 {[%clk 0:02:38]}  Qa5 {[%clk 0:02:26]} 12. Rd1 {[%clk 0:02:25]}  Rac8 {[%clk 0:02:06]} 13. O-O {[%clk 0:02:23]}  b5 {[%clk 0:02:04]} 14. a3 {[%clk 0:01:58]}  b4 {[%clk 0:02:02]} 15. axb4 {[%clk 0:01:55]}  Qxb4 {[%clk 0:02:03]} 16. Bxf6 {[%clk 0:01:49]}  Bxf6 {[%clk 0:01:59]} 17. Nd5 {[%clk 0:01:47]}  Qxb2 {[%clk 0:01:38]} 18. c4 {[%clk 0:01:47]}  Bxd5 {[%clk 0:01:30]} 19. Qxb2 {[%clk 0:01:38]}  Bxb2 {[%clk 0:01:30]} 20. exd5 {[%clk 0:01:39]}  a5 {[%clk 0:01:23]} 21. Rb1 {[%clk 0:01:38]}  Bd4 {[%clk 0:01:21]} 22. Rb3 {[%clk 0:01:29]}  Ra8 {[%clk 0:01:16]} 23. Rd1 {[%clk 0:01:11]}  Bc5 {[%clk 0:01:14]} 24. Rb5 {[%clk 0:01:05]}  a4 {[%clk 0:01:13]} 25. Rd2 {[%clk 0:01:06]}  a3 {[%clk 0:01:11]} 26. Ra2 {[%clk 0:01:04]}  Rfe8 {[%clk 0:00:54]} 27. Kf1 {[%clk 0:01:03]}  Ra4 {[%clk 0:00:47]} 28. Ke1 {[%clk 0:00:48]}  e6 {[%clk 0:00:42]} 29. dxe6 {[%clk 0:00:38]}  Rxe6 {[%clk 0:00:43]} 30. Kd1 {[%clk 0:00:29]}  Bxf2 {[%clk 0:00:41]} 31. Bd3 {[%clk 0:00:21]}  Bc5 {[%clk 0:00:37]} 32. Kc2 {[%clk 0:00:20]}  Rf6 {[%clk 0:00:36]} 33. Kb3 {[%clk 0:00:20]}  Ra7 {[%clk 0:00:32]} 34. Re2 {[%clk 0:00:18]}  Rf4 {[%clk 0:00:23]} 35. Ka2 {[%clk 0:00:17]}  Rd4 {[%clk 0:00:22]} 36. Be4 {[%clk 0:00:14]}  Rxc4 {[%clk 0:00:20]} 37. Bd5 {[%clk 0:00:14]}  Rd4 {[%clk 0:00:17]} 38. Bb3 {[%clk 0:00:14]}  Rd3 {[%clk 0:00:17]} 39. Rb8+ {[%clk 0:00:12]}  Kg7 {[%clk 0:00:17]} 40. Rb5 {[%clk 0:00:09]}  Ra8 {[%clk 0:00:14]} 41. Rc2 {[%clk 0:00:09]}  Re8 {[%clk 0:00:14]} 42. h3 {[%clk 0:00:09]}  Ree3 {[%clk 0:00:13]} 43. Rb7 {[%clk 0:00:09]}  Rc3 {[%clk 0:00:12]} 44. Rxf7+ {[%clk 0:00:06]}  Kh6 {[%clk 0:00:13]} 45. Rxc3 {[%clk 0:00:07]}  Rxc3 {[%clk 0:00:11]} 46. Rb7 {[%clk 0:00:07]}  Rd3 {[%clk 0:00:09]} 47. h4 {[%clk 0:00:07]}  Rd2+ {[%clk 0:00:09]} 48. Kb1 {[%clk 0:00:07]}  Rb2+ {[%clk 0:00:09]} 49. Kc1 {[%clk 0:00:06]}  Be3+ {[%clk 0:00:10]} 50. Kd1 {[%clk 0:00:06]}  a2 {[%clk 0:00:09]} 51. Bxa2 {[%clk 0:00:02]}  Rxb7 {[%clk 0:00:10]} 52. Bd5 {[%clk 0:00:02]}  Rb2 {[%clk 0:00:09]} 53. Be4 {[%clk 0:00:01]}  d5 {[%clk 0:00:08]} 0-1


[Site "https://www.chess.com"]

[Event "Titled Tuesday Blitz February 15 Late 2022"]
[White "De Arruda, Leandro Formes"]
[Black "KND2020"]
[WhiteFideId "22722009"]
[WhiteElo "1780"]
[BlackElo "2503"]
[Result "0-1"]
[Round "05"]
[TimeControl "180+1"]
[Date "2022.02.16"]
[WhiteClock "0:00:02"]
[BlackClock "0:00:08"]

1. d4 {[%clk 0:03:00]}  Nf6 {[%clk 0:02:59]} 2. Nf3 {[%clk 0:03:00]}  c5 {[%clk 0:02:59]} 3. e3 {[%clk 0:03:00]}  e6 {[%clk 0:02:57]} 4. Bd3 {[%clk 0:02:59]}  d5 {[%clk 0:02:56]} 5. c3 {[%clk 0:02:59]}  Nc6 {[%clk 0:02:56]} 6. Nbd2 {[%clk 0:02:59]}  Bd6 {[%clk 0:02:57]} 7. O-O {[%clk 0:02:59]}  O-O {[%clk 0:02:55]} 8. Re1 {[%clk 0:02:59]}  e5 {[%clk 0:02:49]} 9. e4 {[%clk 0:02:59]}  cxd4 {[%clk 0:02:45]} 10. cxd4 {[%clk 0:02:59]}  dxe4 {[%clk 0:02:39]} 11. Nxe4 {[%clk 0:02:58]}  Nxe4 {[%clk 0:02:37]} 12. Bxe4 {[%clk 0:02:55]}  Nxd4 {[%clk 0:02:36]} 13. Nxd4 {[%clk 0:02:38]}  exd4 {[%clk 0:02:37]} 14. Qh5 {[%clk 0:02:30]}  g6 {[%clk 0:02:36]} 15. Qh6 {[%clk 0:02:29]}  Qf6 {[%clk 0:02:34]} 16. Bg5 {[%clk 0:02:29]}  Qg7 {[%clk 0:02:33]} 17. Qh4 {[%clk 0:02:28]}  Re8 {[%clk 0:02:10]} 18. Bd5 {[%clk 0:02:12]}  Be6 {[%clk 0:01:58]} 19. Bf6 {[%clk 0:02:08]}  Qf8 {[%clk 0:01:56]} 20. Bxe6 {[%clk 0:01:58]}  fxe6 {[%clk 0:01:54]} 21. Qxd4 {[%clk 0:01:56]}  Bc5 {[%clk 0:01:48]} 22. Qe5 {[%clk 0:01:50]}  Rac8 {[%clk 0:01:33]} 23. Rad1 {[%clk 0:01:26]}  Qf7 {[%clk 0:01:29]} 24. Re2 {[%clk 0:01:05]}  Rc6 {[%clk 0:01:16]} 25. Red2 {[%clk 0:00:59]}  Rf8 {[%clk 0:01:08]} 26. Bh4 {[%clk 0:00:43]}  Qf5 {[%clk 0:01:00]} 27. Qg3 {[%clk 0:00:26]}  Bb6 {[%clk 0:00:46]} 28. h3 {[%clk 0:00:17]}  Bc7 {[%clk 0:00:31]} 29. Qe3 {[%clk 0:00:09]}  Bb6 {[%clk 0:00:28]} 30. Qh6 {[%clk 0:00:07]}  Rcc8 {[%clk 0:00:19]} 31. Rd7 {[%clk 0:00:06]}  Rf7 {[%clk 0:00:16]} 32. Rxf7 {[%clk 0:00:05]}  Qxf7 {[%clk 0:00:17]} 33. Bg3 {[%clk 0:00:05]}  Rc2 {[%clk 0:00:13]} 34. Rf1 {[%clk 0:00:03]}  Qg7 {[%clk 0:00:10]} 35. Qg5 {[%clk 0:00:03]}  Qf7 {[%clk 0:00:08]} 36. Qg4 {[%clk 0:00:02]}  Rc5 {[%clk 0:00:08]} 37. Qe4 {[%clk 0:00:02]}  Rf5 {[%clk 0:00:08]} 0-1


[Site "https://www.chess.com"]

[Event "Titled Tuesday Blitz February 15 Late 2022"]
[White "Domingo Nunez, Alejandro"]
[Black "Kobo, Ori"]
[WhiteFideId "22245561"]
[BlackFideId "2812320"]
[WhiteElo "2215"]
[BlackElo "2420"]
[Result "0-1"]
[Round "05"]
[TimeControl "180+1"]
[Date "2022.02.16"]
[WhiteClock "0:00:06"]
[BlackClock "0:00:13"]

1. Nf3 {[%clk 0:03:00]}  d5 {[%clk 0:02:59]} 2. g3 {[%clk 0:03:00]}  Nd7 {[%clk 0:02:58]} 3. d4 {[%clk 0:03:00]}  Nb6 {[%clk 0:02:58]} 4. Bg2 {[%clk 0:02:59]}  Bf5 {[%clk 0:02:58]} 5. Nh4 {[%clk 0:02:59]}  Bg4 {[%clk 0:02:51]} 6. Qd3 {[%clk 0:02:59]}  Nf6 {[%clk 0:02:45]} 7. O-O {[%clk 0:02:58]}  e6 {[%clk 0:02:43]} 8. Nc3 {[%clk 0:02:53]}  Be7 {[%clk 0:02:36]} 9. e4 {[%clk 0:02:53]}  c6 {[%clk 0:02:28]} 10. h3 {[%clk 0:02:39]}  Bh5 {[%clk 0:02:27]} 11. g4 {[%clk 0:02:26]}  dxe4 {[%clk 0:02:19]} 12. Nxe4 {[%clk 0:02:24]}  Nxe4 {[%clk 0:02:11]} 13. Bxe4 {[%clk 0:02:21]}  Bxh4 {[%clk 0:02:08]} 14. gxh5 {[%clk 0:02:21]}  Bg5 {[%clk 0:02:01]} 15. Be3 {[%clk 0:01:59]}  Nd5 {[%clk 0:01:57]} 16. Bxg5 {[%clk 0:01:26]}  Qxg5+ {[%clk 0:01:57]} 17. Qg3 {[%clk 0:01:27]}  Qxh5 {[%clk 0:01:45]} 18. Qxg7 {[%clk 0:01:09]}  Ke7 {[%clk 0:01:41]} 19. Kh2 {[%clk 0:01:10]}  Nf6 {[%clk 0:01:33]} 20. Qg2 {[%clk 0:00:50]}  Rhg8 {[%clk 0:01:20]} 21. Qf3 {[%clk 0:00:50]}  Ng4+ {[%clk 0:01:14]} 22. Kh1 {[%clk 0:00:47]}  Qh4 {[%clk 0:00:57]} 23. Rae1 {[%clk 0:00:40]}  Rg5 {[%clk 0:00:47]} 24. Bf5 {[%clk 0:00:15]}  Rag8 {[%clk 0:00:29]} 25. Bxg4 {[%clk 0:00:10]}  Rxg4 {[%clk 0:00:29]} 26. Rg1 {[%clk 0:00:09]}  Rxg1+ {[%clk 0:00:24]} 27. Rxg1 {[%clk 0:00:10]}  Rxg1+ {[%clk 0:00:24]} 28. Kxg1 {[%clk 0:00:11]}  Qxd4 {[%clk 0:00:24]} 29. c3 {[%clk 0:00:12]}  Qd2 {[%clk 0:00:20]} 30. b4 {[%clk 0:00:07]}  Qxa2 {[%clk 0:00:20]} 31. Qe3 {[%clk 0:00:06]}  Qb1+ {[%clk 0:00:13]} 0-1


[Site "https://www.chess.com"]

[Event "Titled Tuesday Blitz February 15 Late 2022"]
[White "Dovbnia, Nikita"]
[Black "Abdyzhapar, Asylbek"]
[WhiteFideId "54104599"]
[BlackFideId "13800337"]
[WhiteElo "2111"]
[BlackElo "2331"]
[Result "0-1"]
[Round "05"]
[TimeControl "180+1"]
[Date "2022.02.16"]
[WhiteClock "0:00:23"]
[BlackClock "0:01:03"]

1. d4 {[%clk 0:02:53]}  d5 {[%clk 0:02:59]} 2. Nc3 {[%clk 0:02:53]}  c6 {[%clk 0:02:57]} 3. Bf4 {[%clk 0:02:52]}  Bf5 {[%clk 0:02:55]} 4. e3 {[%clk 0:02:51]}  e6 {[%clk 0:02:56]} 5. f3 {[%clk 0:02:52]}  Qb6 {[%clk 0:02:54]} 6. Qd2 {[%clk 0:02:42]}  Nf6 {[%clk 0:02:51]} 7. g4 {[%clk 0:02:41]}  Bg6 {[%clk 0:02:51]} 8. h4 {[%clk 0:02:42]}  h5 {[%clk 0:02:50]} 9. g5 {[%clk 0:02:41]}  Nfd7 {[%clk 0:02:50]} 10. Bd3 {[%clk 0:02:41]}  Bxd3 {[%clk 0:02:49]} 11. Qxd3 {[%clk 0:02:42]}  c5 {[%clk 0:02:46]} 12. Nge2 {[%clk 0:02:39]}  Nc6 {[%clk 0:02:44]} 13. O-O-O {[%clk 0:02:21]}  cxd4 {[%clk 0:02:24]} 14. exd4 {[%clk 0:02:13]}  Nb4 {[%clk 0:02:13]} 15. Qe3 {[%clk 0:02:07]}  Be7 {[%clk 0:02:05]} 16. a3 {[%clk 0:02:04]}  a5 {[%clk 0:02:04]} 17. axb4 {[%clk 0:01:48]}  axb4 {[%clk 0:02:04]} 18. Nb1 {[%clk 0:01:48]}  Ra1 {[%clk 0:02:03]} 19. g6 {[%clk 0:01:39]}  fxg6 {[%clk 0:02:02]} 20. Qd3 {[%clk 0:01:36]}  Kf7 {[%clk 0:02:01]} 21. Rhg1 {[%clk 0:01:36]}  Nf8 {[%clk 0:01:58]} 22. Bg5 {[%clk 0:01:28]}  Bd6 {[%clk 0:01:58]} 23. Nf4 {[%clk 0:01:23]}  Qc7 {[%clk 0:01:50]} 24. Ne2 {[%clk 0:00:59]}  Qa5 {[%clk 0:01:23]} 25. Bf4 {[%clk 0:00:41]}  Be7 {[%clk 0:01:22]} 26. Be5 {[%clk 0:00:40]}  Bxh4 {[%clk 0:01:17]} 27. Bd6 {[%clk 0:00:36]}  Be7 {[%clk 0:01:14]} 28. Bxe7 {[%clk 0:00:33]}  Kxe7 {[%clk 0:01:14]} 29. Nf4 {[%clk 0:00:33]}  Qc7 {[%clk 0:01:05]} 30. Rde1 {[%clk 0:00:30]}  Qxf4+ {[%clk 0:01:03]} 31. Qd2 {[%clk 0:00:27]}  Rxb1+ {[%clk 0:01:03]} 32. Kxb1 {[%clk 0:00:26]}  Qxd2 {[%clk 0:01:04]} 33. Re5 {[%clk 0:00:25]}  Qxd4 {[%clk 0:01:03]} 34. Rg3 {[%clk 0:00:23]}  Qxe5 {[%clk 0:01:03]} 0-1


[Site "https://www.chess.com"]

[Event "Titled Tuesday Blitz February 15 Late 2022"]
[White "Ezat, Mohamed"]
[Black "Stanisz, Patryk"]
[WhiteFideId "10600906"]
[BlackFideId "1123106"]
[WhiteElo "2386"]
[BlackElo "1876"]
[Result "1-0"]
[Round "05"]
[TimeControl "180+1"]
[Date "2022.02.16"]
[WhiteClock "0:01:05"]
[BlackClock "0:00:03"]

1. d4 {[%clk 0:03:00]}  d5 {[%clk 0:02:59]} 2. c4 {[%clk 0:03:01]}  c6 {[%clk 0:03:00]} 3. Nc3 {[%clk 0:03:01]}  Nf6 {[%clk 0:03:00]} 4. cxd5 {[%clk 0:03:01]}  cxd5 {[%clk 0:03:00]} 5. Bf4 {[%clk 0:03:00]}  a6 {[%clk 0:02:59]} 6. e3 {[%clk 0:02:53]}  Nc6 {[%clk 0:02:57]} 7. Bd3 {[%clk 0:02:52]}  e6 {[%clk 0:02:50]} 8. Rc1 {[%clk 0:02:50]}  Be7 {[%clk 0:02:48]} 9. h3 {[%clk 0:02:49]}  O-O {[%clk 0:02:48]} 10. Nf3 {[%clk 0:02:49]}  Bd7 {[%clk 0:02:48]} 11. O-O {[%clk 0:02:48]}  Rc8 {[%clk 0:02:48]} 12. Qe2 {[%clk 0:02:47]}  b5 {[%clk 0:02:45]} 13. a4 {[%clk 0:02:46]}  b4 {[%clk 0:02:22]} 14. Nb1 {[%clk 0:02:43]}  a5 {[%clk 0:02:22]} 15. Ba6 {[%clk 0:02:41]}  Qb6 {[%clk 0:01:40]} 16. Bxc8 {[%clk 0:02:39]}  Rxc8 {[%clk 0:01:41]} 17. Nbd2 {[%clk 0:02:38]}  b3 {[%clk 0:01:13]} 18. Qb5 {[%clk 0:02:36]}  Qxb5 {[%clk 0:00:59]} 19. axb5 {[%clk 0:02:35]}  Nb4 {[%clk 0:00:45]} 20. Nxb3 {[%clk 0:02:28]}  a4 {[%clk 0:00:35]} 21. Rxc8+ {[%clk 0:02:23]}  Bxc8 {[%clk 0:00:35]} 22. Rc1 {[%clk 0:02:21]}  Bd7 {[%clk 0:00:31]} 23. Nc5 {[%clk 0:02:20]}  Bxb5 {[%clk 0:00:30]} 24. Ne5 {[%clk 0:02:14]}  h6 {[%clk 0:00:25]} 25. g4 {[%clk 0:02:07]}  Bd6 {[%clk 0:00:15]} 26. f3 {[%clk 0:01:52]}  g5 {[%clk 0:00:14]} 27. Bg3 {[%clk 0:01:51]}  Kg7 {[%clk 0:00:14]} 28. Kg2 {[%clk 0:01:47]}  h5 {[%clk 0:00:14]} 29. Bh2 {[%clk 0:01:21]}  h4 {[%clk 0:00:13]} 30. Nb7 {[%clk 0:01:10]}  Bb8 {[%clk 0:00:07]} 31. Rc8 {[%clk 0:01:07]}  Ba7 {[%clk 0:00:04]} 32. Rc7 {[%clk 0:01:07]}  Kg8 {[%clk 0:00:02]} 33. Nd6 {[%clk 0:01:05]}  Bb8 {[%clk 0:00:02]} 34. Rc8+ {[%clk 0:01:05]}  Kg7 {[%clk 0:00:02]} 35. Rxb8 {[%clk 0:01:05]}  Be2 {[%clk 0:00:03]} 1-0


[Site "https://www.chess.com"]

[Event "Titled Tuesday Blitz February 15 Late 2022"]
[White "Fiorito, Fabian"]
[Black "Golubenko, Valentina"]
[WhiteFideId "100200"]
[BlackFideId "4501993"]
[WhiteElo "2395"]
[BlackElo "2164"]
[Result "1-0"]
[Round "05"]
[TimeControl "180+1"]
[Date "2022.02.16"]
[WhiteClock "0:02:24"]
[BlackClock "0:01:05"]

1. d4 {[%clk 0:02:56]}  g6 {[%clk 0:02:59]} 2. e4 {[%clk 0:02:55]}  Bg7 {[%clk 0:02:59]} 3. Nc3 {[%clk 0:02:56]}  c5 {[%clk 0:02:59]} 4. d5 {[%clk 0:02:56]}  d6 {[%clk 0:03:00]} 5. Nf3 {[%clk 0:02:56]}  Nf6 {[%clk 0:02:59]} 6. Bc4 {[%clk 0:02:56]}  a6 {[%clk 0:02:55]} 7. a4 {[%clk 0:02:56]}  O-O {[%clk 0:02:54]} 8. O-O {[%clk 0:02:56]}  Nbd7 {[%clk 0:02:50]} 9. Re1 {[%clk 0:02:55]}  Nb6 {[%clk 0:02:47]} 10. Bf1 {[%clk 0:02:53]}  e6 {[%clk 0:02:42]} 11. a5 {[%clk 0:02:52]}  Nbd7 {[%clk 0:02:38]} 12. dxe6 {[%clk 0:02:52]}  Ne5 {[%clk 0:02:27]} 13. Nxe5 {[%clk 0:02:53]}  dxe5 {[%clk 0:02:27]} 14. exf7+ {[%clk 0:02:54]}  Kxf7 {[%clk 0:02:18]} 15. Bc4+ {[%clk 0:02:54]}  Be6 {[%clk 0:02:18]} 16. Nd5 {[%clk 0:02:52]}  Kg8 {[%clk 0:02:00]} 17. Nxf6+ {[%clk 0:02:52]}  Rxf6 {[%clk 0:02:00]} 18. Qe2 {[%clk 0:02:31]}  Bxc4 {[%clk 0:01:34]} 19. Qxc4+ {[%clk 0:02:31]}  Rf7 {[%clk 0:01:30]} 20. Be3 {[%clk 0:02:31]}  Rc8 {[%clk 0:01:27]} 21. Red1 {[%clk 0:02:28]}  Qf8 {[%clk 0:01:13]} 22. Rd7 {[%clk 0:02:25]}  Rc7 {[%clk 0:01:05]} 23. Rxc7 {[%clk 0:02:24]} 1-0


[Site "https://www.chess.com"]

[Event "Titled Tuesday Blitz February 15 Late 2022"]
[White "Fishbein, Alexander"]
[Black "Baches Garcia, Guillermo"]
[WhiteFideId "2000377"]
[BlackFideId "2209764"]
[WhiteElo "2442"]
[BlackElo "2454"]
[Result "1-0"]
[Round "05"]
[TimeControl "180+1"]
[Date "2022.02.16"]
[WhiteClock "0:02:08"]
[BlackClock "0:02:08"]

1. e4 {[%clk 0:03:00]}  c5 {[%clk 0:02:58]} 2. Nf3 {[%clk 0:02:59]}  d6 {[%clk 0:02:59]} 3. d4 {[%clk 0:02:59]}  cxd4 {[%clk 0:03:00]} 4. Nxd4 {[%clk 0:02:59]}  Nf6 {[%clk 0:03:00]} 5. Nc3 {[%clk 0:02:59]}  Nc6 {[%clk 0:03:01]} 6. Be2 {[%clk 0:02:58]}  e5 {[%clk 0:03:01]} 7. Nf3 {[%clk 0:02:58]}  Be7 {[%clk 0:03:00]} 8. Bg5 {[%clk 0:02:57]}  O-O {[%clk 0:02:58]} 9. O-O {[%clk 0:02:57]}  Be6 {[%clk 0:02:58]} 10. Qd2 {[%clk 0:02:56]}  a5 {[%clk 0:02:42]} 11. Bxf6 {[%clk 0:02:52]}  Bxf6 {[%clk 0:02:42]} 12. Nd5 {[%clk 0:02:52]}  Bxd5 {[%clk 0:02:37]} 13. Qxd5 {[%clk 0:02:50]}  Nd4 {[%clk 0:02:35]} 14. Nxd4 {[%clk 0:02:46]}  exd4 {[%clk 0:02:36]} 15. Bd3 {[%clk 0:02:29]}  a4 {[%clk 0:02:35]} 16. a3 {[%clk 0:02:28]}  Ra5 {[%clk 0:02:22]} 17. Qxb7 {[%clk 0:02:14]}  Qb8 {[%clk 0:02:22]} 18. Qb4 {[%clk 0:02:10]}  d5 {[%clk 0:02:08]} 19. Qxa5 {[%clk 0:02:08]} 1-0


[Site "https://www.chess.com"]